fUST/lending_fUST_20250820
["ID","MTS","AMOUNT","RATE_DAILY","PERIOD"]
[380324246,1755678640877,-151.0,0.00019547,2]
[380324247,1755678640887,-284.88869581,0.00019547,2]
[380324248,1755678640896,-729.0,0.00019547,2]
[380324249,1755678640905,-151.0,0.00019547,2]
[380324250,1755678640915,-293.83601117,0.00019547,2]
[380324251,1755678640924,-160.0,0.00019697,2]
[380324252,1755678641029,-289.12,0.00019726,2]
[380324253,1755678641038,-455.01,0.00019726,2]
[380324254,1755678641047,-496.10715975,0.00019726,2]
[380324255,1755678641057,-480.0,0.00019726,2]
[380324256,1755678641066,-952.16,0.00019726,2]
[380324257,1755678641075,-480.0,0.00019726,2]
[380324258,1755678641084,-480.0,0.00019726,2]
[380324259,1755678641093,-480.0,0.00019726,2]
[380324260,1755678641103,-480.0,0.00019726,2]
[380324261,1755678641112,-626.41,0.00019726,2]
[380324262,1755678641121,-498.07936394,0.00019726,2]
[380324263,1755678641130,-494.13906668,0.00019726,2]
[380324264,1755678641139,-488.42716679,0.00019726,2]
[380324265,1755678641148,-748.41,0.00019726,2]
[380324266,1755678641157,-997.44,0.00019726,2]
[380324267,1755678641166,-480.0,0.00019726,2]
[380324268,1755678641175,-480.0,0.00019726,2]
[380324269,1755678641184,-480.0,0.00019726,2]
[380324270,1755678641193,-480.0,0.00019726,2]
[380324271,1755678641202,-480.0,0.00019726,2]
[380324272,1755678641211,-480.0,0.00019726,2]
[380324273,1755678641221,-480.0,0.00019726,2]
[380324274,1755678641230,-480.0,0.00019726,2]
[380324275,1755678641239,-480.0,0.00019726,2]
[380324276,1755678641249,-480.0,0.00019726,2]
[380324277,1755678641258,-500.0,0.00019773,2]
[380324278,1755678641267,-500.82755019,0.00019773,2]
[380324279,1755678641276,-500.0,0.00019773,2]
[380324280,1755678641285,-500.0,0.00019773,2]
[380324281,1755678641294,-394.39397571,0.00019773,2]
[380324282,1755678641303,-500.0,0.00019773,2]
[380324283,1755678641312,-500.0,0.00019773,2]
[380324284,1755678641321,-500.0,0.00019773,2]
[380324285,1755678641330,-500.0,0.00019773,2]
[380324286,1755678641339,-501.15104707,0.00019773,2]
[380324287,1755678641348,-501.28334109,0.00019773,2]
[380324288,1755678641357,-500.0,0.00019773,2]
[380324289,1755678641366,-500.0,0.00019773,2]
[380324290,1755678641375,-500.0,0.00019773,2]
[380324291,1755678641385,-501.6847792,0.00019773,2]
[380324292,1755678641394,-501.63845286,0.00019773,2]
[380324293,1755678641406,-500.0,0.00019773,2]
[380324294,1755678641418,-500.0,0.00019773,2]
[380324295,1755678641427,-500.0,0.00019773,2]
[380324296,1755678641435,-501.61740736,0.00019773,2]
[380324297,1755678641445,-500.63181945,0.00019773,2]
[380324298,1755678641454,-428.40260488,0.00019773,2]
[380324299,1755678641463,-365.60859336,0.00019773,2]
[380324300,1755678641472,-500.79757952,0.00019773,2]
[380324301,1755678641482,-500.0,0.00019773,2]
[380324302,1755678641492,-500.0,0.00019773,2]
[380324303,1755678641501,-500.0,0.00019773,2]
[380324304,1755678641511,-500.0,0.00019773,2]
[380324305,1755678641521,-500.0,0.00019773,2]
[380324306,1755678641530,-500.74908328,0.00019773,2]
[380324307,1755678641540,-500.56400178,0.00019773,2]
[380324308,1755678641550,-500.0,0.00019773,2]
[380324309,1755678641559,-500.0,0.00019773,2]
[380324310,1755678641568,-420.71488441,0.00019773,2]
[380324311,1755678641578,-500.0,0.00019773,2]
[380324312,1755678641587,-501.02341132,0.00019773,2]
[380324313,1755678641596,-452.35924193,0.00019773,2]
[380324314,1755678641605,-500.0,0.00019773,2]
[380324315,1755678641615,-500.0,0.00019773,2]
[380324316,1755678641624,-500.0,0.00019773,2]
[380324317,1755678641634,-500.0,0.00019773,2]
[380324318,1755678641643,-158.28950966,0.00019773,2]
[380324319,1755678641652,-181.49244548,0.00019773,2]
[380324320,1755678641661,-500.0,0.00019773,2]
[380324321,1755678641670,-500.0,0.00019773,2]
[380324322,1755678641679,-500.0,0.00019773,2]
[380324323,1755678641688,-500.0,0.00019773,2]
[380324324,1755678641696,-500.0,0.00019773,2]
[380324325,1755678641705,-500.0,0.00019773,2]
[380324326,1755678641714,-500.0,0.00019773,2]
[380324327,1755678641723,-500.0,0.00019773,2]
[380324328,1755678641733,-339.58474564,0.00019773,2]
[380324329,1755678641746,-501.24230976,0.00019773,2]
[380324330,1755678641755,-517.28725975,0.00019773,2]
[380324331,1755678641764,-500.0,0.00019773,2]
[380324332,1755678641774,-500.0,0.00019773,2]
[380324333,1755678641783,-259.21754307,0.00019773,2]
[380324334,1755678641791,-500.0,0.00019773,2]
[380324335,1755678641801,-500.0,0.00019773,2]
[380324336,1755678641810,-179.843549,0.00019788,2]
[380324337,1755678641819,-151.0,0.00019788,2]
[380324338,1755678641829,-151.0,0.00019788,2]
[380324339,1755678641838,-256.766162,0.00019788,2]
[380324340,1755678641847,-151.0,0.00019788,2]
[380324341,1755678641859,-151.0,0.00019788,2]
[380324342,1755678641869,-151.0,0.00019788,2]
[380324343,1755678641879,-154.311629,0.00019788,2]
[380324344,1755678641890,-151.0,0.00019797,2]
[380324345,1755678641899,-152.6455,0.00019797,2]
[380324346,1755678641908,-151.0,0.00019797,2]
[380324347,1755678641918,-151.0,0.00019797,2]
[380324348,1755678641927,-151.0,0.00019797,2]
[380324349,1755678641936,-158.588305,0.00019797,2]
[380324350,1755678641946,-152.93944,0.00019797,2]
[380324351,1755678641956,-151.0,0.00019797,2]
[380324352,1755678641965,-151.0,0.00019797,2]
[380324353,1755678641974,-151.0,0.00019797,2]
[380324354,1755678641983,-156.426731,0.00019797,2]
[380324355,1755678641992,-151.0,0.00019797,2]
[380324356,1755678642002,-151.0,0.00019797,2]
[380324357,1755678642011,-151.0,0.00019797,2]
[380324358,1755678642020,-151.0,0.00019797,2]
[380324359,1755678642030,-151.0,0.00019797,2]
[380324360,1755678642039,-151.0,0.00019797,2]
[380324361,1755678642048,-151.0,0.00019797,2]
[380324362,1755678642057,-200.351306,0.00019797,2]
[380324363,1755678642066,-200.351306,0.00019797,2]
[380324364,1755678642076,-200.351306,0.00019797,2]
[380324365,1755678642085,-200.351306,0.00019797,2]
[380324366,1755678642094,-480.0,0.00019798,2]
[380324367,1755678642103,-480.0,0.00019798,2]
[380324368,1755678642112,-480.0,0.00019798,2]
[380324369,1755678642122,-480.0,0.00019798,2]
[380324370,1755678642131,-480.87509938,0.00019798,2]
[380324371,1755678642140,-480.0,0.00019798,2]
[380324372,1755678642149,-480.0,0.00019798,2]
[380324373,1755678642158,-480.07972463,0.00019798,2]
[380324374,1755678642168,-480.0,0.00019798,2]
[380324375,1755678642177,-480.0,0.00019798,2]
[380324376,1755678642187,-480.0,0.00019798,2]
[380324377,1755678642196,-480.0,0.00019798,2]
[380324378,1755678642205,-480.0,0.00019798,2]
[380324379,1755678642214,-480.0,0.00019798,2]
[380324380,1755678642223,-484.03283918,0.00019798,2]
[380324381,1755678642233,-481.25992814,0.00019798,2]
[380324382,1755678642242,-480.0,0.00019798,2]
[380324383,1755678642252,-480.0,0.00019798,2]
[380324384,1755678642261,-489.4756425,0.00019798,2]
[380324385,1755678642270,-468.045565,0.00019798,2]
[380324386,1755678642279,-480.0,0.00019798,2]
[380324387,1755678642289,-480.0,0.00019798,2]
[380324388,1755678642298,-151.0,0.00019798,2]
[380324389,1755678642307,-500.0,0.00019798,2]
[380324390,1755678642317,-500.0,0.00019798,2]
[380324391,1755678642326,-500.0,0.00019798,2]
[380324392,1755678642335,-363.98516244,0.00019798,2]
[380324393,1755678642344,-480.0,0.00019798,2]
[380324394,1755678642353,-480.0,0.00019798,2]
[380324395,1755678642363,-312.44143875,0.00019798,2]
[380324396,1755678642374,-480.0,0.00019798,2]
[380324397,1755678642384,-480.0,0.00019798,2]
[380324398,1755678642393,-480.61096259,0.00019798,2]
[380324399,1755678642403,-480.0,0.00019798,2]
[380324400,1755678642415,-484.90715805,0.00019798,2]
[380324402,1755678642425,-483.62870143,0.00019798,2]
[380324403,1755678642434,-480.0,0.00019798,2]
[380324404,1755678642443,-480.0,0.00019798,2]
[380324405,1755678642453,-480.0,0.00019798,2]
[380324406,1755678642462,-483.50217806,0.00019798,2]
[380324407,1755678642471,-480.0,0.00019798,2]
[380324409,1755678642480,-480.0,0.00019798,2]
[380324411,1755678642489,-480.0,0.00019798,2]
[380324412,1755678642498,-480.0,0.00019798,2]
[380324413,1755678642507,-480.0,0.00019798,2]
[380324414,1755678642516,-480.0,0.00019798,2]
[380324415,1755678642526,-480.0,0.00019798,2]
[380324416,1755678642535,-480.0,0.00019798,2]
[380324417,1755678642545,-480.0,0.00019798,2]
[380324418,1755678642554,-153.038638,0.00019798,2]
[380324419,1755678642563,-175.331537,0.00019798,2]
[380324420,1755678642573,-480.0,0.00019798,2]
[380324422,1755678642582,-151.0,0.00019798,2]
[380324423,1755678642592,-480.0,0.00019798,2]
[380324424,1755678642601,-178.210269,0.00019798,2]
[380324425,1755678642610,-178.210269,0.00019798,2]
[380324426,1755678642619,-226.36618523,0.00019798,2]
[380324427,1755678642627,-178.210269,0.00019798,2]
[380324428,1755678642637,-178.210269,0.00019798,2]
[380324429,1755678642646,-483.49637551,0.00019798,2]
[380324430,1755678642655,-548.90583723,0.00019798,2]
[380324431,1755678642664,-480.0,0.00019798,2]
[380324432,1755678642673,-484.14841196,0.00019798,2]
[380324433,1755678642682,-151.0,0.00019798,2]
[380324434,1755678642692,-483.35398969,0.00019798,2]
[380324435,1755678642700,-482.72061947,0.00019798,2]
[380324436,1755678642710,-480.0,0.00019798,2]
[380324437,1755678642719,-480.0,0.00019798,2]
[380324438,1755678642728,-151.0,0.00019798,2]
[380324439,1755678642738,-151.0,0.00019798,2]
[380324441,1755678642747,-481.12636587,0.00019798,2]
[380324443,1755678642757,-151.68248445,0.00019798,2]
[380324444,1755678642767,-151.0,0.00019798,2]
[380324446,1755678642776,-151.0,0.00019798,2]
[380324447,1755678642786,-151.0,0.00019798,2]
[380324448,1755678642795,-151.0,0.00019798,2]
[380324449,1755678642805,-151.0,0.00019798,2]
[380324450,1755678642814,-151.0,0.00019798,2]
[380324451,1755678642823,-480.0,0.00019798,2]
[380324452,1755678642833,-482.21934491,0.00019798,2]
[380324453,1755678642843,-605.38206465,0.00019798,2]
[380324454,1755678642852,-480.0,0.00019798,2]
[380324456,1755678642861,-151.0,0.00019798,2]
[380324458,1755678642871,-157.830142,0.00019798,2]
[380324459,1755678642880,-480.0,0.00019798,2]
[380324460,1755678642889,-151.0,0.00019798,2]
[380324461,1755678642898,-151.0,0.00019798,2]
[380324462,1755678642907,-461.46509219,0.00019798,2]
[380324464,1755678642916,-151.0,0.00019798,2]
[380324466,1755678642926,-151.0,0.00019798,2]
[380324468,1755678642935,-151.0,0.00019798,2]
[380324470,1755678642944,-151.0,0.00019798,2]
[380324472,1755678642954,-480.79032199,0.00019798,2]
[380324474,1755678642964,-200.351306,0.00019798,2]
[380324476,1755678642973,-200.351306,0.00019798,2]
[380324478,1755678642982,-480.0,0.00019798,2]
[380324480,1755678642991,-483.09150058,0.00019798,2]
[380324482,1755678643000,-200.351306,0.00019798,2]
[380324484,1755678643010,-200.351306,0.00019798,2]
[380324486,1755678643019,-480.0,0.00019798,2]
[380324488,1755678643029,-151.0,0.00019798,2]
[380324490,1755678643038,-480.60209827,0.00019798,2]
[380324492,1755678643047,-151.0,0.00019798,2]
[380324493,1755678643057,-480.0,0.00019798,2]
[380324495,1755678643066,-151.0,0.00019798,2]
[380324497,1755678643075,-151.0,0.00019798,2]
[380324499,1755678643084,-151.0,0.00019798,2]
[380324501,1755678643094,-151.0,0.00019798,2]
[380324503,1755678643104,-151.0,0.00019798,2]
[380324505,1755678643113,-151.0,0.00019798,2]
[380324507,1755678643123,-151.0,0.00019798,2]
[380324509,1755678643133,-151.0,0.00019798,2]
[380324511,1755678643142,-509.04310956,0.00019798,2]
[380324513,1755678643151,-151.0,0.00019798,2]
[380324515,1755678643160,-151.0,0.00019798,2]
[380324517,1755678643170,-158.705288,0.00019798,2]
[380324519,1755678643179,-158.705288,0.00019798,2]
[380324522,1755678643188,-158.705288,0.00019798,2]
[380324524,1755678643198,-158.705288,0.00019798,2]
[380324526,1755678643207,-151.0,0.00019798,2]
[380324528,1755678643215,-216.033577,0.00019798,2]
[380324530,1755678643224,-481.58450787,0.00019798,2]
[380324532,1755678643234,-480.0,0.00019798,2]
[380324534,1755678643243,-480.0,0.00019798,2]
[380324536,1755678643252,-301.512355,0.00019798,2]
[380324538,1755678643261,-1000.0,0.00019798,2]
[380324540,1755678643270,-1000.0,0.00019798,2]
[380324542,1755678643279,-1000.0,0.00019798,2]
[380324544,1755678643288,-1000.0,0.00019798,2]
[380324546,1755678643300,-240.33,0.00019798,2]
[380324548,1755678643309,-151.0,0.00019798,2]
[380324550,1755678643318,-214.209078,0.00019798,2]
[380324552,1755678643329,-480.0,0.00019799,2]
[380324554,1755678643338,-480.0,0.00019799,2]
[380324556,1755678643348,-482.88706782,0.00019799,2]
[380324568,1755678643447,-480.0,0.00019799,2]
[380324570,1755678643457,-480.0,0.00019799,2]
[380324572,1755678643467,-281.51225187,0.00019799,2]
[380324573,1755678643476,-480.0,0.00019799,2]
[380324576,1755678643485,-480.0,0.00019799,2]
[380324577,1755678643494,-178.42984027,0.00019799,2]
[380324579,1755678643503,-482.41233694,0.00019799,2]
[380324581,1755678643512,-480.0,0.00019799,2]
[380324583,1755678643521,-480.0,0.00019799,2]
[380324585,1755678643530,-486.54129071,0.00019799,2]
[380324587,1755678643539,-480.0,0.00019799,2]
[380324589,1755678643548,-480.0,0.00019799,2]
[380324591,1755678643558,-343.39419591,0.00019799,2]
[380324593,1755678643567,-480.0,0.00019799,2]
[380324595,1755678643577,-481.14152034,0.00019799,2]
[380324597,1755678643587,-480.0,0.00019799,2]
[380324599,1755678643596,-364.66151947,0.00019799,2]
[380324601,1755678643605,-482.0582596,0.00019799,2]
[380324603,1755678643615,-482.88962171,0.00019799,2]
[380324605,1755678643624,-481.37121229,0.00019799,2]
[380324607,1755678643634,-480.0,0.00019799,2]
[380324609,1755678643643,-476.94141488,0.00019799,2]
[380324611,1755678643653,-480.0,0.00019799,2]
[380324613,1755678643663,-480.0,0.00019799,2]
[380324615,1755678643672,-482.49678614,0.00019799,2]
[380324617,1755678643682,-480.0,0.00019799,2]
[380324619,1755678643691,-480.0,0.00019799,2]
[380324621,1755678643700,-480.0,0.00019799,2]
[380324623,1755678643709,-480.96497626,0.00019799,2]
[380324625,1755678643718,-335.09402219,0.00019799,2]
[380324627,1755678643727,-232.3119291,0.00019799,2]
[380324629,1755678643736,-486.12219658,0.00019799,2]
[380324631,1755678643745,-480.0,0.00019799,2]
[380324633,1755678643754,-480.0,0.00019799,2]
[380324635,1755678643763,-482.65811296,0.00019799,2]
[380324637,1755678643772,-482.23414586,0.00019799,2]
[380324639,1755678643782,-480.0,0.00019799,2]
[380324641,1755678643792,-482.05903641,0.00019799,2]
[380324643,1755678643801,-481.33711021,0.00019799,2]
[380324645,1755678643810,-483.62328127,0.00019799,2]
[380324647,1755678643819,-480.0,0.00019799,2]
[380324649,1755678643828,-482.24471002,0.00019799,2]
[380324651,1755678643837,-279.64036006,0.00019799,2]
[380324653,1755678643846,-480.0,0.00019799,2]
[380324655,1755678643856,-460.95159455,0.00019799,2]
[380324657,1755678643865,-480.86677343,0.00019799,2]
[380324659,1755678643875,-480.0,0.00019799,2]
[380324661,1755678643886,-481.33968942,0.00019799,2]
[380324663,1755678643895,-500.36063582,0.00019799,2]
[380324665,1755678643904,-481.9536057,0.00019799,2]
[380324667,1755678643913,-462.10929711,0.00019799,2]
[380324669,1755678643922,-480.0,0.00019799,2]
[380324671,1755678643931,-482.04191059,0.00019799,2]
[380324673,1755678643940,-480.0,0.00019799,2]
[380324675,1755678643950,-480.0,0.00019799,2]
[380324677,1755678643959,-480.0,0.00019799,2]
[380324679,1755678643968,-500.0,0.00019799,2]
[380324681,1755678643977,-501.55142337,0.00019799,2]
[380324683,1755678643987,-484.96213521,0.00019799,2]
[380324685,1755678643996,-480.97960136,0.00019799,2]
[380324687,1755678644006,-579.78924514,0.00019799,2]
[380324689,1755678644015,-460.46160027,0.00019799,2]
[380324690,1755678644024,-480.0,0.00019799,2]
[380324692,1755678644034,-480.0,0.00019799,2]
[380324694,1755678644043,-480.0,0.00019799,2]
[380324696,1755678644053,-480.66850674,0.00019799,2]
[380324698,1755678644062,-480.0,0.00019799,2]
[380324700,1755678644072,-463.79630478,0.00019799,2]
[380324702,1755678644081,-151.0,0.00019799,2]
[380324704,1755678644090,-151.0,0.00019799,2]
[380324706,1755678644099,-480.0,0.00019799,2]
[380324708,1755678644109,-151.0,0.00019799,2]
[380324710,1755678644118,-480.0,0.00019799,2]
[380324712,1755678644128,-151.0,0.00019799,2]
[380324714,1755678644138,-480.0,0.00019799,2]
[380324716,1755678644147,-480.0,0.00019799,2]
[380324718,1755678644156,-500.0,0.00019799,2]
[380324720,1755678644166,-426.48246694,0.00019799,2]
[380324722,1755678644175,-480.0,0.00019799,2]
[380324724,1755678644186,-151.0,0.00019799,2]
[380324726,1755678644196,-480.0,0.00019799,2]
[380324728,1755678644205,-237.6032039,0.00019799,2]
[380324731,1755678644215,-151.0,0.00019799,2]
[380324732,1755678644226,-151.0,0.00019799,2]
[380324734,1755678644236,-151.0,0.00019799,2]
[380324736,1755678644245,-402.63,0.00019799,2]
[380324739,1755678644255,-480.0,0.00019799,2]
[380324740,1755678644266,-480.0,0.00019799,2]
[380324742,1755678644275,-481.89595138,0.00019799,2]
[380324744,1755678644284,-480.0,0.00019799,2]
[380324746,1755678644294,-481.39476629,0.00019799,2]
[380324748,1755678644303,-480.0,0.00019799,2]
[380324750,1755678644312,-152.572477,0.00019799,2]
[380324752,1755678644321,-480.0,0.00019799,2]
[380324754,1755678644331,-151.0,0.00019799,2]
[380324756,1755678644341,-254.791694,0.00019799,2]
[380324758,1755678644351,-210.7094346,0.00019799,2]
[380324760,1755678644360,-480.0,0.00019799,2]
[380324763,1755678644371,-480.0,0.00019799,2]
[380324764,1755678644381,-483.8452939,0.00019799,2]
[380324767,1755678644393,-480.0,0.00019799,2]
[380324769,1755678644403,-480.0,0.00019799,2]
[380324771,1755678644416,-480.0,0.00019799,2]
[380324773,1755678644425,-480.0,0.00019799,2]
[380324775,1755678644435,-480.0,0.00019799,2]
[380324777,1755678644445,-476.0,0.00019799,2]
[380324779,1755678644455,-460.0,0.00019799,2]
[380324781,1755678644465,-480.0,0.00019799,2]
[380324783,1755678644475,-480.0,0.00019799,2]
[380324785,1755678644484,-480.0,0.00019799,2]
[380324787,1755678644496,-151.0,0.00019799,2]
[380324789,1755678644505,-40380.15899404,0.000198,2]
[380324791,1755678644514,-151.0,0.000198,2]
[380324793,1755678644523,-178.210269,0.000198,2]
[380324795,1755678644533,-178.210269,0.000198,2]
[380324797,1755678644542,-178.210269,0.000198,2]
[380324799,1755678644551,-178.210269,0.000198,2]
[380324801,1755678644560,-151.0,0.000198,2]
[380324803,1755678644570,-151.0,0.000198,2]
[380324805,1755678644589,-151.0,0.000198,2]
[380324807,1755678644598,-151.0,0.000198,2]
[380324809,1755678644607,-151.0,0.000198,2]
[380324811,1755678644617,-151.0,0.000198,2]
[380324813,1755678644626,-151.0,0.000198,2]
[380324815,1755678644635,-164.595216,0.000198,2]
[380324817,1755678644644,-155.475497,0.000198,2]
[380324819,1755678644654,-151.0,0.000198,2]
[380324821,1755678644663,-200.351306,0.000198,2]
[380324823,1755678644671,-200.351306,0.000198,2]
[380324825,1755678644680,-200.351306,0.000198,2]
[380324827,1755678644689,-200.351306,0.000198,2]
[380324829,1755678644699,-153.681035,0.000198,2]
[380324831,1755678644708,-151.0,0.000198,2]
[380324833,1755678644717,-151.0,0.000198,2]
[380324835,1755678644726,-151.0,0.000198,2]
[380324837,1755678644735,-151.0,0.000198,2]
[380324839,1755678644744,-151.0,0.000198,2]
[380324841,1755678644753,-151.0,0.000198,2]
[380324843,1755678644762,-151.0,0.000198,2]
[380324845,1755678644771,-151.0,0.000198,2]
[380324847,1755678644780,-151.0,0.000198,2]
[380324849,1755678644789,-151.0,0.000198,2]
[380324851,1755678644800,-151.0,0.000198,2]
[380324853,1755678644811,-158.705288,0.000198,2]
[380324855,1755678644820,-1023.86375232,0.000198,2]
[380324857,1755678644829,-158.705288,0.000198,2]
[380324859,1755678644837,-158.705288,0.000198,2]
[380324861,1755678644847,-158.705288,0.000198,2]
[380324863,1755678644856,-151.0,0.000198,2]
[380324865,1755678644865,-1000.0,0.000198,2]
[380324867,1755678644875,-1000.0,0.000198,2]
[380324869,1755678644886,-1000.0,0.000198,2]
[380324871,1755678644895,-1000.0,0.000198,2]
[380324873,1755678644904,-1000.0,0.000198,2]
[380324875,1755678644913,-1000.0,0.000198,2]
[380324877,1755678644923,-1000.0,0.000198,2]
[380324879,1755678644932,-1000.0,0.000198,2]
[380324881,1755678644942,-1000.0,0.000198,2]
[380324883,1755678644951,-1000.0,0.000198,2]
[380324885,1755678644961,-1000.0,0.000198,2]
[380324887,1755678644970,-1000.0,0.000198,2]
[380324889,1755678644979,-1000.0,0.000198,2]
[380324891,1755678644989,-1000.0,0.000198,2]
[380324893,1755678644998,-1000.0,0.000198,2]
[380324895,1755678645009,-1000.0,0.000198,2]
[380324897,1755678645019,-1000.0,0.000198,2]
[380324899,1755678645035,-1000.0,0.000198,2]
[380324900,1755678645044,-1000.0,0.000198,2]
[380324902,1755678645054,-1000.0,0.000198,2]
[380324904,1755678645063,-1000.0,0.000198,2]
[380324906,1755678645072,-1000.0,0.000198,2]
[380324908,1755678645081,-1000.0,0.000198,2]
[380324910,1755678645091,-1000.0,0.000198,2]
[380324912,1755678645100,-1000.0,0.000198,2]
[380324914,1755678645110,-1000.0,0.000198,2]
[380324916,1755678645119,-1000.0,0.000198,2]
[380324918,1755678645128,-1000.0,0.000198,2]
[380324919,1755678645138,-1000.0,0.000198,2]
[380324920,1755678645148,-1000.0,0.000198,2]
[380324921,1755678645157,-1000.0,0.000198,2]
[380324922,1755678645166,-1000.0,0.000198,2]
[380324923,1755678645176,-1000.0,0.000198,2]
[380324924,1755678645185,-538.254775,0.000198,2]
[380324925,1755678645195,-151.0,0.000198,2]
[380324926,1755678645204,-500.0,0.00019821,2]
[380324927,1755678645214,-729.0,0.00019821,2]
[380324928,1755678645224,-271.790043,0.00019863,2]
[380324929,1755678645233,-4902.67562786,0.000199,2]
[380324930,1755678645242,-8222.29074271,0.0002,2]
[380324931,1755678645252,-952.16,0.0002,2]
[380324932,1755678645262,-282.55,0.0002,2]
[380324933,1755678645272,-480.0,0.0002,2]
[380324934,1755678645281,-242.99265382,0.0002,2]
[380324935,1755678645290,-626.41,0.0002,2]
[380324936,1755678645300,-748.41,0.0002,2]
[380324937,1755678645310,-997.44,0.0002,2]
[380324938,1755678645319,-480.0,0.0002,2]
[380324939,1755678645329,-480.0,0.0002,2]
[380324940,1755678645338,-480.0,0.0002,2]
[380324941,1755678645347,-480.0,0.0002,2]
[380324942,1755678645357,-372.8,0.0002,2]
[380324943,1755678645367,-480.0,0.0002,2]
[380324944,1755678645376,-480.0,0.0002,2]
[380324945,1755678645385,-480.0,0.0002,2]
[380324946,1755678645397,-480.0,0.0002,2]
[380324947,1755678645409,-160.0,0.0002,3]
[380324948,1755678645420,-480.0,0.0002,2]
[380324949,1755678645430,-2507.40698154,0.00020043,2]
[380324950,1755678645439,-1500.0,0.00020068,2]
[380324951,1755678645449,-198.99807432,0.00020072,2]
[380324953,1755678645458,-151.0,0.00020072,2]
[380324955,1755678645468,-153.91704026,0.00020072,2]
[380324957,1755678645486,-151.0,0.00020072,2]
[380324959,1755678645503,-151.58718127,0.00020072,2]
[380324961,1755678645512,-151.0,0.00020072,2]
[380324963,1755678645522,-480.0,0.00020072,2]
[380324965,1755678645531,-480.0,0.00020072,2]
[380324967,1755678645541,-484.06679089,0.00020072,2]
[380324969,1755678645550,-480.0,0.00020072,2]
[380324971,1755678645560,-480.0,0.00020072,2]
[380324973,1755678645570,-155.93522394,0.00020072,2]
[380324976,1755678645580,-491.68652741,0.00020072,2]
[380324978,1755678645590,-254.1436555,0.00020072,2]
[380324980,1755678645600,-485.18093531,0.00020072,2]
[380324982,1755678645609,-480.0,0.00020072,2]
[380324984,1755678645619,-493.87466968,0.00020072,2]
[380324986,1755678645628,-480.0,0.00020072,2]
[380324988,1755678645638,-202.03762603,0.00020072,2]
[380324991,1755678645651,-480.0,0.00020072,2]
[380324992,1755678645660,-480.0,0.00020072,2]
[380324994,1755678645669,-484.64316437,0.00020072,2]
[380325006,1755678645767,-480.0,0.00020072,2]
[380325008,1755678645777,-480.0,0.00020072,2]
[380325009,1755678645788,-401.74095875,0.00020072,2]
[380325012,1755678645807,-151.0,0.00020072,2]
[380325014,1755678645817,-151.0,0.00020072,2]
[380325016,1755678645826,-151.0,0.00020072,2]
[380325018,1755678645835,-151.0,0.00020072,2]
[380325020,1755678645845,-480.0,0.00020072,2]
[380325022,1755678645854,-261.92400709,0.00020072,2]
[380325024,1755678645863,-486.58312114,0.00020072,2]
[380325026,1755678645872,-480.0,0.00020072,2]
[380325028,1755678645882,-483.58781311,0.00020073,2]
[380325030,1755678645892,-351.54668955,0.00020073,2]
[380325032,1755678645902,-467.53304859,0.00020073,2]